fUSD/lending_fUSD_20241119
["ID","MTS","AMOUNT","RATE_DAILY","PERIOD"]
[342642814,1732020636448,-500.0,9.999e-05,2]
[342642815,1732020636458,-500.0,9.999e-05,2]
[342642816,1732020636470,-500.0,9.999e-05,2]
[342642817,1732020636479,-500.0,9.999e-05,2]
[342642818,1732020636489,-406.43,9.999e-05,2]
[342642819,1732020636498,-626.78,9.999e-05,2]
[342642820,1732020636508,-500.0,9.999e-05,2]
[342642821,1732020636517,-500.0,9.999e-05,2]
[342642822,1732020636528,-500.0,9.999e-05,2]
[342642823,1732020636538,-500.0,9.999e-05,2]
[342642824,1732020636547,-500.0,9.999e-05,2]
[342642825,1732020636557,-500.0,9.999e-05,2]
[342642826,1732020636567,-500.0,9.999e-05,2]
[342642827,1732020636576,-419.37,9.999e-05,2]
[342642828,1732020636585,-500.0,9.999e-05,2]
[342642829,1732020636595,-500.0,9.999e-05,2]
[342642830,1732020636604,-500.0,9.999e-05,2]
[342642831,1732020636616,-409.72,9.999e-05,2]
[342642832,1732020636626,-500.0,9.999e-05,2]
[342642833,1732020636635,-500.0,9.999e-05,2]
[342642834,1732020636645,-500.0,9.999e-05,2]
[342642835,1732020636655,-505.76,9.999e-05,2]
[342642836,1732020636665,-178.30272084,9.999e-05,2]
[342642837,1732020636674,-500.0,9.999e-05,2]
[342642838,1732020636685,-500.0,9.999e-05,2]
[342642839,1732020636694,-521.69,9.999e-05,2]
[342642840,1732020636703,-223.76,9.999e-05,2]
[342642841,1732020636713,-500.0,9.999e-05,2]
[342642842,1732020636723,-443.83,9.999e-05,2]
[342642843,1732020636733,-500.0,9.999e-05,2]
[342642844,1732020636742,-575.35,9.999e-05,2]
[342642845,1732020636757,-500.0,9.999e-05,2]
[342642846,1732020636767,-500.0,9.999e-05,2]
[342642847,1732020636776,-500.0,9.999e-05,2]
[342642848,1732020636786,-500.0,9.999e-05,2]
[342642849,1732020636795,-500.0,9.999e-05,2]
[342642850,1732020636805,-363.854536,9.999e-05,2]
[342642851,1732020636814,-500.0,9.999e-05,2]
[342642852,1732020636823,-500.0,9.999e-05,2]
[342642853,1732020636833,-500.0,9.999e-05,2]
[342642854,1732020636844,-500.0,9.999e-05,2]
[342642855,1732020636853,-500.0,9.999e-05,2]
[342642856,1732020636865,-388.58,9.999e-05,2]
[342642857,1732020636874,-500.0,9.999e-05,2]
[342642858,1732020636884,-500.0,9.999e-05,2]
[342642859,1732020636893,-500.0,9.999e-05,2]
[342642860,1732020636903,-500.0,9.999e-05,2]
[342642861,1732020636913,-615.32,9.999e-05,2]
[342642862,1732020636922,-220.20837388,9.999e-05,2]
[342642863,1732020636932,-14557.56197562,9.999e-05,2]
[342642864,1732020636942,-14557.56197562,0.0001,2]
[342642865,1732020636951,-56761.50188896,0.0001,2]
[342642866,1732020637199,-45509.15053352,0.0001,2]
[342642867,1732020637220,-4431.0999995,0.0001,2]
[342642868,1732020637231,-4615.5,0.0001,2]
[342642869,1732020637258,-502.30113061,9.998e-05,2]
[342642870,1732020637267,-3605.08704367,0.0001,2]
[342642874,1732020638377,-70559.3213575,0.0001,2]
[342642875,1732020638488,-1464.67257974,0.0001,2]
[342642876,1732020638548,-262444.09557166,0.0001,2]
[342642877,1732020638558,-8975.35203997,0.0001,2]
[342642878,1732020638568,-3660050.11263093,0.0001,2]
[342642879,1732020638578,-150.0,0.0001,2]
[342642880,1732020638587,-250.0,0.0001,2]
[342642881,1732020638597,-245.382,0.0001,2]
[342642882,1732020638610,-282.457,0.0001,2]
[342642883,1732020638620,-150.31,0.0001,2]
[342642884,1732020638630,-1000.0,0.0001,2]
[342642885,1732020638640,-240.0,0.0001,2]
[342642886,1732020638650,-208.0,0.0001,2]
[342642887,1732020638659,-208.0,0.0001,2]
[342642889,1732020638669,-208.0,0.0001,2]
[342642891,1732020638679,-208.0,0.0001,2]
[342642893,1732020638689,-208.0,0.0001,2]
[342642896,1732020638699,-208.0,0.0001,2]
[342642897,1732020638708,-208.0,0.0001,2]
[342642899,1732020638718,-208.0,0.0001,2]
[342642901,1732020638727,-208.0,0.0001,2]
[342642904,1732020638737,-208.0,0.0001,2]
[342642906,1732020638746,-208.0,0.0001,2]
[342642908,1732020638756,-500.0,0.0001,2]
[342642909,1732020638765,-204.0,0.0001,2]
[342642910,1732020638775,-204.0,0.0001,2]
[342642911,1732020638784,-204.0,0.0001,2]
[342642912,1732020638793,-204.0,0.0001,2]
[342642913,1732020638803,-204.0,0.0001,2]
[342642914,1732020638813,-204.0,0.0001,2]
[342642915,1732020638823,-204.0,0.0001,2]
[342642916,1732020638833,-204.0,0.0001,2]
[342642917,1732020638843,-213.0,0.0001,2]
[342642918,1732020638853,-213.0,0.0001,2]
[342642919,1732020638865,-213.0,0.0001,2]
[342642920,1732020638874,-213.0,0.0001,2]
[342642921,1732020638883,-213.0,0.0001,2]
[342642922,1732020638893,-213.0,0.0001,2]
[342642923,1732020638902,-213.0,0.0001,2]
[342642924,1732020638911,-213.0,0.0001,2]
[342642925,1732020638920,-213.0,0.0001,2]
[342642926,1732020638929,-213.0,0.0001,2]
[342642927,1732020638939,-213.0,0.0001,2]
[342642928,1732020638949,-1000.0,0.0001,2]
[342642929,1732020638959,-1000.0,0.0001,2]
[342642930,1732020638968,-1000.0,0.0001,2]
[342642931,1732020638978,-1000.0,0.0001,2]
[342642932,1732020638987,-1000.0,0.0001,2]
[342642933,1732020638997,-730.77,0.0001,2]
[342642934,1732020639007,-1000.0,0.0001,2]
[342642935,1732020639016,-5800.0,0.0001,2]
[342642936,1732020639026,-800.0,0.0001,2]
[342642937,1732020639036,-800.0,0.0001,2]
[342642938,1732020639049,-800.0,0.0001,2]
[342642939,1732020639058,-800.0,0.0001,2]
[342642940,1732020639068,-800.0,0.0001,2]
[342642941,1732020639078,-11563.17004689,0.0001,2]
[342642942,1732020639089,-11083818.55869915,0.0001,2]
[342642957,1732020640268,-923.805,0.0001,2]
[342642959,1732020640281,-8185.6205985,0.0001,2]
[342642962,1732020640328,-838.68893181,0.0001,2]
[342642963,1732020640340,-15730.0,0.0001,2]
[342642964,1732020640503,-500.0,0.0001,2]
[342642970,1732020643271,-267969.49311305,0.0001,2]
[342642971,1732020643384,-4716.78161037,0.0001,2]
[342642972,1732020643495,-832937.08415968,0.0001,2]
[342642973,1732020643506,-7336.79960426,0.0001,2]
[342642974,1732020643517,-378.9665677,0.0001,2]
[342642975,1732020643552,-6886.85089255,0.0001,2]
[342642976,1732020643565,-3092.55935117,0.0001,2]
[342642977,1732020643576,-2989.7275965,0.0001,2]
[342642992,1732020646408,-5231.2655235,0.0001,2]
[342642993,1732020646422,-4028.00837242,0.0001,2]
[342642994,1732020646434,-2248.21351728,0.0001,2]
[342642995,1732020646447,-9354.8427031,0.0001,2]
[342642996,1732020646459,-432.29997924,0.0001,2]
[342642997,1732020646478,-390.28907213,0.0001,2]
[342642998,1732020646490,-2771.701598,0.0001,2]
[342642999,1732020646502,-563.71434,0.0001,2]
[342643001,1732020726989,955.27,8.219e-05,2]
[342643006,1732021167228,151.0,0.00023,120]
[342643007,1732021177007,151.0,0.00023,120]
[342643008,1732021187244,151.0,0.00023,120]
[342643009,1732021195228,151.0,0.00023,120]
[342643010,1732021204383,151.0,0.00023,120]
[342643011,1732021238004,151.0,0.00023,120]
[342643012,1732021247702,151.0,0.00023,120]
[342643013,1732021256047,151.0,0.00023,120]
[342643015,1732021265663,151.0,0.00023,120]
[342643016,1732021273436,151.0,0.00023,120]
[342643017,1732021354182,200.0,0.00023,120]
[342643018,1732021364548,200.0,0.0002,60]
[342643019,1732021425038,200.0,0.0001723,45]
[342643020,1732021449094,975.01,8.219e-05,2]
[342643024,1732021629216,202.26565846,0.00022,120]
[342643042,1732021831454,-250.0,9.024e-05,2]
[342643043,1732021831466,-500.0,9.04e-05,3]
[342643044,1732021831475,-195.05,9.064e-05,2]
[342643045,1732021831486,-165.55,9.108e-05,2]
[342643046,1732021831499,-151.90360434,9.173e-05,2]
[342643047,1732021831516,-848.09639566,9.173e-05,2]
[342643048,1732021831526,-230.11,9.186e-05,2]
[342643049,1732021831536,-200.0,9.6e-05,2]
[342643050,1732021831546,-164.83,9.64e-05,2]
[342643051,1732021831556,-1159.0,9.822e-05,2]
[342643052,1732021831566,-150.0,9.822e-05,2]
[342643053,1732021831576,-2143.95938694,9.822e-05,2]
[342643054,1732021831589,-649.32687009,9.822e-05,2]
[342643055,1732021831602,-355.04370356,9.822e-05,2]
[342643056,1732021831633,-500.0,9.822e-05,2]
[342643057,1732021831694,-2289.67003941,9.822e-05,2]
[342643058,1732021831704,-6961.18892337,9.822e-05,2]
[342643059,1732021831716,-1359.6749531,9.822e-05,2]
[342643060,1732021831754,-1399.2,9.822e-05,2]
[342643061,1732021831766,-3931.93612353,9.822e-05,2]
[342643062,1732021831776,-250.0,9.89e-05,2]
[342643063,1732021831786,-150.0,9.899e-05,2]
[342643064,1732021831796,-2368.56387115,9.9e-05,2]
[342643065,1732021831810,-4331.93612885,9.9e-05,2]
[342643066,1732021831820,-150.0,9.9e-05,2]
[342643067,1732021831830,-25033.71363759,9.91e-05,2]
[342643068,1732021831841,-150.0,9.918e-05,2]
[342643069,1732021831851,-500.0,9.92e-05,2]
[342643070,1732021831860,-500.0,9.95e-05,2]
[342643071,1732021831872,-500.0,9.95e-05,2]
[342643072,1732021831883,-500.0,9.95e-05,2]
[342643073,1732021831892,-500.0,9.95e-05,2]
[342643109,1732021832311,-467.9931,9.95e-05,2]
[342643112,1732021832332,-1000.0,9.95e-05,2]
[342643114,1732021832347,-1000.0,9.95e-05,2]
[342643116,1732021832357,-992.2818,9.95e-05,2]
[342643117,1732021832367,-500.38624719,9.973e-05,2]
[342643118,1732021832378,-161.96059926,9.973e-05,2]
[342643119,1732021832388,-500.0,9.973e-05,2]
[342643120,1732021832398,-500.43736919,9.973e-05,2]
[342643121,1732021832410,-500.0,9.973e-05,2]
[342643122,1732021832420,-160.1054907,9.991e-05,2]
[342643123,1732021832431,-601.6971854,9.991e-05,2]
[342643124,1732021832440,-601.6971852,9.991e-05,2]
[342643125,1732021832450,-40887.51973895,9.997e-05,2]
[342643126,1732021832460,-2859.761,9.998e-05,2]
[342643127,1732021832469,-176.562,9.998e-05,2]
[342643128,1732021832479,-150.81365786,9.999e-05,2]
[342643129,1732021832489,-6385.12671404,9.999e-05,2]
[342643130,1732021832501,-85936.10322931,9.999e-05,2]
[342643131,1732021832511,-500.0,9.999e-05,2]
[342643132,1732021832521,-500.0,9.999e-05,2]
[342643133,1732021832531,-500.0,9.999e-05,2]
[342643134,1732021832540,-500.0,9.999e-05,2]
[342643135,1732021832549,-500.0,9.999e-05,2]
[342643136,1732021832558,-260.32,9.999e-05,2]
[342643137,1732021832567,-500.0,9.999e-05,2]
[342643138,1732021832576,-1489.39023032,9.999e-05,2]
[342643139,1732021832586,-500.0,9.999e-05,2]
[342643140,1732021832595,-68.77110752,9.999e-05,2]
[342643141,1732021832616,-541.08959248,9.999e-05,2]
[342643142,1732021832627,-1489.3902303,9.999e-05,2]
[342643143,1732021832636,-1489.3902303,9.999e-05,2]
[342643144,1732021832647,-1489.3902303,9.999e-05,2]
[342643145,1732021832656,-1349.07562862,9.999e-05,2]
[342643146,1732021832668,-140.31460168,9.999e-05,2]
[342643147,1732021832677,-427.03056841,0.0001,2]
[342643148,1732021832689,-373.8950065,0.0001,2]
[342643149,1732021832710,-688.46465539,0.0001,2]
[342643150,1732021832720,-1489.3902303,0.0001,2]
[342643151,1732021832729,-32539.14122966,0.0001,2]
[342643152,1732021832741,-10095.13792797,0.0001,2]
[342643153,1732021832752,-430221.54467541,0.0001,2]
[342643154,1732021832762,-10130.53150736,0.0001,2]
[342643155,1732021832776,-1489.3902303,0.0001,2]
[342643156,1732021832786,-1489.3902303,0.0001,2]
[342643157,1732021832796,-459634.92811642,0.0001,2]
[342643159,1732021837435,-999.39500995,9.822e-05,2]
[342643160,1732021837447,-92.60499005,9.822e-05,2]
[342643161,1732021837457,-2873.78679201,0.0001,2]
[342643162,1732021837469,-823.71665588,0.0001,2]
[342643163,1732021837498,-110900.0,0.0001,2]
[342643164,1732021837560,-63009.37236935,0.0001,2]
[342643165,1732021837572,-92540.08602435,0.0001,2]
[342643166,1732021837583,-1367.64039301,0.0001,2]
[342643167,1732021837594,-3962.55749776,0.0001,2]
[342643168,1732021837605,-3110.01716113,0.0001,2]
[342643169,1732021837617,-799.5914014,0.0001,2]
[342643170,1732021837633,-39617.41159282,0.0001,2]
[342643171,1732021837645,-417.75551658,0.0001,2]
[342643172,1732021837683,-15299745.1159015,0.0001,2]
[342643173,1732021837694,-3703.24,0.0001,2]
[342643174,1732021837750,-370.336,0.0001,2]
[342643175,1732021837763,-1350.0,0.0001,2]
[342643176,1732021837774,-17402.19356475,0.0001,2]
[342643189,1732021839376,-32957.87039604,0.0001,2]
[342643190,1732021839493,-4625.84999999,0.0001,2]
[342643191,1732021839506,-6395.87056754,0.0001,2]
[342643192,1732021839520,-1593.87372913,0.0001,2]
[342643193,1732021839531,-4405.87833759,0.0001,2]
[342643194,1732021839618,-1225.7,0.0001,2]
[342643200,1732021842558,-100109.02708936,0.0001,2]
[342643201,1732021842649,-14.8194224,0.0001,2]
[342643202,1732021842661,-4452.705,0.0001,2]
[342643203,1732021842672,-27265.80000003,0.0001,2]
[342643204,1732021842687,-9258.4,0.0001,2]
[342643205,1732021842699,-2441.6086509,0.0001,2]
[342643206,1732021842735,-185316.30493601,0.0001,2]
[342643207,1732021842797,-620.64688061,0.0001,2]
[342643209,1732021842809,-941.5260415,0.0001,2]
[342643286,1732021845829,-25514.45938697,0.0001,2]
[342643287,1732021845893,-462.115,0.0001,2]
[342643288,1732021846009,-66241.2935994,0.0001,2]
[342643289,1732021852601,-1000.0,9.648e-05,2]
[342643290,1732021887794,-350.0,9.605e-05,2]
[342643291,1732021906076,500.0,8.22e-05,2]
[342643292,1732021933153,199.01,7.626e-05,2]
[342643293,1732021959298,150.0,8.503e-05,5]
[342643296,1732022264102,1023.76,8.219e-05,2]
[342643299,1732022520750,2023.41,0.00023,120]
[342643300,1732022539664,1515.72,0.00023,120]
[342643301,1732022619181,199.01,7.212e-05,2]
[342643302,1732022690005,607.46922597,0.00023,120]
[342643307,1732022850292,762.21991311,1e-06,7]
[342643335,1732022987386,150.0,8.219e-05,2]
[342643336,1732022987413,150.0,8.219e-05,2]
[342643337,1732022987434,150.0,8.219e-05,2]
[342643338,1732022987455,150.0,8.219e-05,2]
[342643339,1732022987476,150.0,8.219e-05,2]
[342643340,1732022987497,222.57,8.219e-05,2]
[342643363,1732023031718,-250.0,8.947e-05,2]
[342643364,1732023031728,-184.08,8.978e-05,2]
[342643365,1732023031737,-1534.36,9.008e-05,2]
[342643366,1732023031746,-1650.0,9.009e-05,2]
[342643367,1732023031756,-1000.0,9.033e-05,2]
[342643368,1732023031765,-300.0,9.183e-05,2]
[342643369,1732023031775,-17229.0,9.184e-05,2]
[342643370,1732023031784,-195.05,9.184e-05,2]
[342643371,1732023031793,-500.0,9.255e-05,2]
[342643372,1732023031803,-250.0,9.29e-05,2]
[342643373,1732023031816,-164.68,9.314e-05,2]
[342643374,1732023031826,-581.53,9.519e-05,2]
[342643375,1732023031835,-500.0,9.59e-05,2]
[342643376,1732023031844,-166.88,9.607e-05,2]
[342643377,1732023031854,-3734.1,9.67e-05,2]
[342643378,1732023031863,-880.62,9.67e-05,2]
[342643379,1732023031872,-150.0,9.833e-05,2]
[342643380,1732023031882,-250.0,9.89e-05,2]
[342643381,1732023031891,-2404.1223,9.9e-05,2]
[342643382,1732023031901,-392.2483,9.9e-05,2]
[342643383,1732023031912,-1799.6604,9.9e-05,2]
[342643384,1732023031921,-1133.0,9.9e-05,2]
[342643385,1732023031930,-400.0,9.9e-05,2]
[342643386,1732023031940,-500.0,9.92e-05,2]
[342643387,1732023031949,-5101.59357279,9.982e-05,2]
[342643388,1732023031958,-320.2109808,9.991e-05,2]
[342643389,1732023031967,-150.0,9.996e-05,2]
[342643390,1732023031976,-6076.38928327,9.997e-05,2]
[342643391,1732023031987,-1091.30837,9.997e-05,2]
[342643392,1732023031999,-349.57893753,9.997e-05,2]
[342643393,1732023032018,-319.74587948,9.997e-05,2]
[342643394,1732023032034,-6668.66543608,9.997e-05,2]
[342643395,1732023032043,-500.0,9.999e-05,2]
[342643396,1732023032052,-500.0,9.999e-05,2]
[342643397,1732023032061,-500.0,9.999e-05,2]
[342643398,1732023032070,-500.0,9.999e-05,2]
[342643399,1732023032079,-500.0,9.999e-05,2]
[342643400,1732023032089,-462.93838582,9.999e-05,2]
[342643401,1732023032108,-37.06161418,9.999e-05,2]
[342643402,1732023032117,-500.0,9.999e-05,2]
[342643403,1732023032126,-164.20093189,9.999e-05,2]
[342643404,1732023032137,-2123.60806811,9.999e-05,2]
[342643405,1732023032146,-500.0,9.999e-05,2]
[342643406,1732023032158,-501.85352954,9.999e-05,2]
[342643407,1732023032167,-503.5771856,9.999e-05,2]
[342643408,1732023032176,-511.0968324,9.999e-05,2]
[342643410,1732023032186,-500.37715256,9.999e-05,2]
[342643411,1732023032195,-503.53745897,9.999e-05,2]
[342643413,1732023032203,-500.0,9.999e-05,2]
[342643415,1732023032213,-500.0,9.999e-05,2]
[342643417,1732023032222,-500.0,9.999e-05,2]
[342643419,1732023032231,-512.63,9.999e-05,2]
[342643420,1732023032240,-500.0,9.999e-05,2]
[342643421,1732023032249,-500.0,9.999e-05,2]
[342643422,1732023032258,-506.01327779,9.999e-05,2]
[342643423,1732023032267,-501.3433888,9.999e-05,2]
[342643424,1732023032276,-500.0,9.999e-05,2]
[342643425,1732023032285,-500.0,9.999e-05,2]
[342643426,1732023032294,-500.0,9.999e-05,2]
[342643427,1732023032303,-500.0,9.999e-05,2]
[342643428,1732023032312,-500.0,9.999e-05,2]
[342643429,1732023032321,-500.0,9.999e-05,2]
[342643430,1732023032330,-500.0,9.999e-05,2]
[342643431,1732023032339,-500.0,9.999e-05,2]
[342643432,1732023032348,-500.0,9.999e-05,2]
[342643433,1732023032357,-500.0,9.999e-05,2]
[342643434,1732023032366,-500.0,9.999e-05,2]
[342643435,1732023032375,-500.0,9.999e-05,2]
[342643436,1732023032384,-500.0,9.999e-05,2]
[342643437,1732023032393,-500.0,9.999e-05,2]
[342643438,1732023032404,-583.33,9.999e-05,2]
[342643439,1732023032413,-500.0,9.999e-05,2]
[342643440,1732023032422,-316.64,9.999e-05,2]
[342643441,1732023032431,-500.0,9.999e-05,2]
[342643442,1732023032440,-500.0,9.999e-05,2]
[342643443,1732023032449,-500.0,9.999e-05,2]
[342643444,1732023032459,-500.0,9.999e-05,2]
[342643445,1732023032468,-186.85,9.999e-05,2]
[342643446,1732023032478,-500.0,9.999e-05,2]
[342643447,1732023032487,-500.0,9.999e-05,2]
[342643448,1732023032496,-500.0,9.999e-05,2]
[342643449,1732023032505,-500.0,9.999e-05,2]
[342643450,1732023032514,-500.0,9.999e-05,2]
[342643451,1732023032523,-500.0,9.999e-05,2]
[342643452,1732023032532,-500.0,9.999e-05,2]
[342643453,1732023032541,-624.95,9.999e-05,2]
[342643454,1732023032551,-500.0,9.999e-05,2]
[342643455,1732023032560,-292.44,9.999e-05,2]
[342643456,1732023032569,-500.0,9.999e-05,2]
[342643457,1732023032578,-8610.95178126,0.0001,2]
[342643458,1732023032587,-361029.86676047,0.0001,2]
[342643459,1732023032599,-17492.4827,0.0001,2]
[342643460,1732023032614,-9404.6394,0.0001,2]
[342643461,1732023032625,-9196.96086055,0.0001,2]
[342643462,1732023032636,-906.17476067,0.0001,2]
[342643463,1732023032647,-3152.94117973,0.0001,2]
[342643464,1732023037821,-26613.04393331,0.0001,2]
[342643465,1732023037831,-72454.72587551,0.0001,2]
[342643466,1732023037915,-109901.11319401,0.0001,2]
[342643467,1732023037992,-1350.0,0.0001,2]
[342643468,1732023038014,-15950839.3516161,0.0001,2]
[342643469,1732023038025,-20556.68123734,0.0001,2]
[342643470,1732023038036,-32255.46226499,0.0001,2]
[342643471,1732023038047,-997.6580995,0.0001,2]
[342643472,1732023038058,-3267.88304873,0.0001,2]
[342643473,1732023038069,-2363.9082892,0.0001,2]
[342643474,1732023038080,-14876.81013,0.0001,2]
[342643475,1732023038091,-80391.091,0.0001,2]
[342643476,1732023038106,-2848.95060813,0.0001,2]
[342643477,1732023038148,-257.69760408,0.0001,2]
[342643478,1732023038165,-731.64,0.0001,2]
[342643560,1732023039638,-6019.3687707,0.0001,2]
[342643561,1732023039715,-50174.62161888,0.0001,2]
[342643562,1732023039727,-340906.2259962,0.0001,2]
[342643563,1732023039738,-365.5615394,0.0001,2]
[342643564,1732023039749,-851.00402384,0.0001,2]
[342643565,1732023039806,-1582.7931,0.0001,2]
[342643566,1732023039820,-9269.50000001,0.0001,2]
[342643567,1732023039885,-1112.72932299,0.0001,2]
[342643568,1732023039896,-2778.67589423,0.0001,2]
[342643569,1732023039910,-4626.25,0.0001,2]
[342643570,1732023039921,-534.49948509,0.0001,2]
[342643571,1732023039933,-895.99222082,0.0001,2]
[342643572,1732023039944,-926.798,0.0001,2]
[342643573,1732023039985,-13907.35946858,0.0001,2]
[342643574,1732023039996,-706.55085906,0.0001,2]
[342643587,1732023042680,-1273.2314635,0.0001,2]
[342643588,1732023042692,-539.946321,0.0001,2]
[342643589,1732023042704,-954.84148556,0.0001,2]
[342643590,1732023042715,-18424.406,0.0001,2]
[342643591,1732023042726,-27744.3,0.0001,2]
[342643592,1732023042743,-741.65,0.0001,2]
[342643593,1732023042754,-4950.44916036,0.0001,2]
[342643594,1732023042765,-2697.45218525,0.0001,2]
[342643595,1732023042777,-3979.85589521,0.0001,2]
[342643596,1732023042788,-5953.98792954,0.0001,2]
[342643597,1732023042799,-5961.31789957,0.0001,2]
[342643598,1732023042812,-749.85356061,0.0001,2]
[342643599,1732023042823,-3012.2592174,0.0001,2]
[342643600,1732023042834,-225136.67148818,0.0001,2]
[342643601,1732023042845,-46253.49999999,0.0001,2]
[342643602,1732023042861,-1172.87961455,0.0001,2]
[342643603,1732023042872,-376.3760015,0.0001,2]
[342643604,1732023042903,-926500.0,0.0001,2]
[342643605,1732023043042,-834245.9999993,0.0001,2]
[342643606,1732023043053,-6260.38215437,0.0001,2]
[342643607,1732023043064,-37086.00000002,0.0001,2]
[342643608,1732023043075,-1903.5001,0.0001,2]
[342643609,1732023043086,-354.0838,0.0001,2]
[342643630,1732023045660,-18532.60122001,0.0001,2]
[342643631,1732023045674,-1165.42011425,0.0001,2]
[342643632,1732023045759,-988.12441872,0.0001,2]
[342643633,1732023045770,-31257.0605938,0.0001,2]
[342643634,1732023045782,-912.52015996,0.0001,2]
[342643635,1732023045819,-2779.2477414,0.0001,2]
[342643636,1732023045830,-92368.22083643,0.0001,2]
[342643637,1732023045841,-8544.19533849,0.0001,2]
[342643638,1732023045898,-1564.44761653,0.0001,2]
[342643639,1732023045909,-483.71961275,0.0001,2]
[342643640,1732023045928,-138744.665179,0.0001,2]
[342643641,1732023045943,-784.24680999,0.0001,2]
[342643654,1732023071354,-400.0,9e-05,3]
[342643655,1732023073635,-900.0,9.1e-05,3]
[342643656,1732023075617,-400.0,9.2e-05,3]
[342643657,1732023076329,-1000.0,9.2e-05,3]
[342643658,1732023120778,500.0,8.22e-05,2]
[342643659,1732023321739,150.0,8.22e-05,2]
[342643660,1732023321760,150.0,8.22e-05,2]
[342643661,1732023321781,200.0,8.22e-05,2]
[342643662,1732023706326,1106.9,8.219e-05,2]
[342643663,1732023785314,320.30964,8.178e-05,2]
[342643665,1732024028680,1010.0,0.0002,60]
[342643673,1732024080523,250.0,8.497e-05,2]
[342643674,1732024146113,-150.0,8.54e-05,2]
[342643675,1732024146136,-3282.856014,8.595e-05,2]
[342643683,1732024220934,250.0,8.457e-05,2]
[342643697,1732024231804,-19895.71572966,8.595e-05,2]
[342643698,1732024235738,-73.84825634,8.595e-05,2]
[342643699,1732024235748,-11374.06451381,8.607e-05,2]
[342643700,1732024235758,-250.0,8.607e-05,2]
[342643701,1732024235767,-1200.0,8.619e-05,2]
[342643702,1732024235776,-1000.0,8.659e-05,2]
[342643703,1732024235790,-280.82,8.665e-05,2]
[342643704,1732024235800,-582.21,8.696e-05,2]
[342643705,1732024235810,-163.99,8.805e-05,2]
[342643706,1732024235821,-150.0,8.849e-05,2]
[342643707,1732024235834,-802.1,8.855e-05,2]
[342643708,1732024235843,-3500.49598201,8.999e-05,2]
[342643709,1732024235853,-150.0,8.999e-05,2]
[342643710,1732024235863,-11522.47124784,9e-05,2]
[342643711,1732024235875,-323.11773183,9e-05,2]
[342643712,1732024235934,-18154.41102033,9e-05,2]
[342643713,1732024235944,-600.0,9e-05,3]
[342643714,1732024235953,-1935.53,9.048e-05,2]
[342643715,1732024235962,-1300.0,9.1e-05,3]
[342643716,1732024235972,-2000.0,9.2e-05,3]
[342643717,1732024235981,-2700.0,9.3e-05,3]
[342643718,1732024235991,-1500.0,9.387e-05,2]
[342643719,1732024236000,-167.3533,9.4e-05,2]
[342643720,1732024236010,-3300.0,9.4e-05,3]
[342643721,1732024236019,-150.0,9.403e-05,2]
[342643722,1732024236033,-150.0,9.429e-05,2]
[342643723,1732024236043,-150.0,9.446e-05,2]
[342643724,1732024236052,-30000.0,9.5e-05,5]
[342643725,1732024236062,-600.0,9.5e-05,3]
[342643726,1732024236073,-166.5,9.527e-05,2]
[342643727,1732024236082,-600.0,9.6e-05,3]
[342643728,1732024236092,-14064.07,9.67e-05,2]
[342643729,1732024236102,-580.61,9.67e-05,2]
[342643730,1732024236111,-1728.61,9.67e-05,2]
[342643731,1732024236121,-299.99,9.67e-05,2]
[342643732,1732024236131,-150.99,9.67e-05,2]
[342643733,1732024236145,-3286.3,9.67e-05,2]
[342643734,1732024236157,-150.99,9.67e-05,2]
[342643735,1732024236171,-940.87,9.67e-05,2]
[342643736,1732024236184,-600.0,9.7e-05,3]
[342643737,1732024236197,-46032.0,9.702e-05,2]
[342643738,1732024236208,-1000.0,9.742e-05,2]